fUST/lending_fUST_20250628
["ID","MTS","AMOUNT","RATE_DAILY","PERIOD"]
[368209487,1751059848601,-460.0,0.0002,2]
[368209488,1751059848610,-460.0,0.0002,2]
[368209489,1751059848620,-460.0,0.0002,2]
[368209490,1751059848629,-2371.99,0.0002,2]
[368209491,1751059848638,-500.0,0.0002,2]
[368209492,1751059848647,-644.03,0.0002,2]
[368209493,1751059848657,-569.25,0.0002,2]
[368209494,1751059848666,-460.0,0.0002,2]
[368209495,1751059848675,-587.46,0.0002,2]
[368209496,1751059848685,-703.34,0.0002,2]
[368209497,1751059848694,-4481.33,0.0002,2]
[368209498,1751059848703,-460.0,0.0002,2]
[368209499,1751059848713,-1352.98,0.0002,2]
[368209500,1751059848723,-460.0,0.0002,2]
[368209501,1751059848732,-460.0,0.0002,2]
[368209502,1751059848742,-894.55,0.0002,2]
[368209503,1751059848752,-460.0,0.0002,2]
[368209504,1751059848761,-1968.67,0.0002,2]
[368209505,1751059848770,-460.0,0.0002,2]
[368209506,1751059848780,-460.0,0.0002,2]
[368209507,1751059848790,-460.0,0.0002,2]
[368209508,1751059848799,-460.0,0.0002,2]
[368209509,1751059848809,-460.0,0.0002,2]
[368209510,1751059848819,-5486.24,0.0002,2]
[368209511,1751059848828,-529.91,0.0002,2]
[368209512,1751059848838,-460.0,0.0002,2]
[368209513,1751059848847,-756.72,0.0002,2]
[368209514,1751059848857,-460.0,0.0002,2]
[368209515,1751059848866,-770.22,0.0002,2]
[368209516,1751059848875,-460.0,0.0002,2]
[368209517,1751059848884,-2987.28,0.0002,2]
[368209518,1751059848894,-460.0,0.0002,2]
[368209519,1751059848903,-977.92,0.0002,2]
[368209520,1751059848913,-3584.12,0.0002,2]
[368209521,1751059848923,-460.0,0.0002,2]
[368209522,1751059848932,-652.23,0.0002,2]
[368209523,1751059848942,-755.55,0.0002,2]
[368209524,1751059848952,-460.31,0.0002,2]
[368209525,1751059848962,-213.75309343,0.00020047,2]
[368209526,1751059848972,-160.0,0.00020047,2]
[368209527,1751059848981,-160.0,0.00020047,2]
[368209528,1751059848991,-160.0,0.00020047,2]
[368209529,1751059849001,-214.91804724,0.00020047,2]
[368209530,1751059849011,-160.0,0.00020047,2]
[368209531,1751059849020,-847.04181546,0.00020047,2]
[368209532,1751059849030,-160.0,0.00020047,2]
[368209533,1751059849040,-160.0,0.00020047,2]
[368209534,1751059849050,-160.0,0.00020047,2]
[368209535,1751059849060,-230.26210603,0.00020047,2]
[368209536,1751059849070,-836.98798914,0.00020047,2]
[368209537,1751059849079,-12562.41216491,0.00020047,2]
[368209538,1751059849089,-160.0,0.00020049,2]
[368209539,1751059849099,-160.0,0.0002005,2]
[368209540,1751059849108,-6026.94369125,0.00020141,2]
[368209541,1751059849118,-500.0,0.0002015,2]
[368209542,1751059849128,-225.48016869,0.00020164,2]
[368209543,1751059849137,-1893.7249452,0.00020174,2]
[368209544,1751059849147,-459.76963,0.00020187,2]
[368209545,1751059849156,-151.0,0.00020195,2]
[368209546,1751059849166,-151.0,0.00020195,2]
[368209547,1751059849179,-207.4,0.00020195,2]
[368209548,1751059849188,-500.0,0.00020195,2]
[368209549,1751059849197,-5000.0,0.00020195,2]
[368209550,1751059849207,-500.0,0.00020195,2]
[368209551,1751059849218,-500.0,0.00020195,2]
[368209552,1751059849227,-500.0,0.00020195,2]
[368209553,1751059849238,-500.0,0.00020195,2]
[368209554,1751059849248,-500.0,0.00020195,2]
[368209555,1751059849258,-500.0,0.00020195,2]
[368209556,1751059849267,-381.33984163,0.00020195,2]
[368209557,1751059849276,-1000.0,0.00020269,2]
[368209558,1751059849285,-500.0,0.00020272,2]
[368209559,1751059849294,-500.0,0.00020272,2]
[368209560,1751059849303,-312.8247973,0.00020272,2]
[368209561,1751059849313,-291.32670292,0.00020272,2]
[368209562,1751059849322,-500.0,0.00020272,2]
[368209563,1751059849331,-500.0,0.00020272,2]
[368209564,1751059849340,-500.0,0.00020272,2]
[368209565,1751059849349,-500.0,0.00020272,2]
[368209566,1751059849359,-223.41059905,0.00020272,2]
[368209567,1751059849368,-511.13860579,0.00020272,2]
[368209568,1751059849378,-500.0,0.00020272,2]
[368209569,1751059849387,-500.0,0.00020272,2]
[368209570,1751059849396,-500.0,0.00020272,2]
[368209571,1751059849405,-500.0,0.00020272,2]
[368209572,1751059849415,-500.0,0.00020272,2]
[368209573,1751059849424,-500.0,0.00020272,2]
[368209574,1751059849434,-500.0,0.00020272,2]
[368209575,1751059849443,-500.0,0.00020272,2]
[368209576,1751059849452,-154.27289891,0.00020272,2]
[368209577,1751059849463,-500.0,0.00020272,2]
[368209578,1751059849473,-628.77372518,0.00020272,2]
[368209579,1751059849482,-500.0,0.00020272,2]
[368209580,1751059849491,-500.0,0.00020272,2]
[368209581,1751059849501,-500.0,0.00020272,2]
[368209582,1751059849510,-421.41429018,0.00020272,2]
[368209583,1751059849520,-500.0,0.00020272,2]
[368209584,1751059849529,-233.66999472,0.00020272,2]
[368209585,1751059849538,-500.0,0.00020272,2]
[368209586,1751059849547,-500.0,0.00020272,2]
[368209587,1751059849556,-500.0,0.00020272,2]
[368209588,1751059849566,-500.0,0.00020272,2]
[368209589,1751059849575,-464.93653188,0.00020272,2]
[368209590,1751059849584,-500.0,0.00020272,2]
[368209591,1751059849593,-500.0,0.00020272,2]
[368209592,1751059849603,-500.0,0.00020272,2]
[368209593,1751059849612,-500.0,0.00020272,2]
[368209594,1751059849620,-500.0,0.00020272,2]
[368209595,1751059849629,-500.0,0.00020272,2]
[368209596,1751059849639,-500.0,0.00020272,2]
[368209597,1751059849648,-500.0,0.00020272,2]
[368209598,1751059849658,-500.0,0.00020272,2]
[368209599,1751059849666,-500.0,0.00020272,2]
[368209600,1751059849676,-500.0,0.00020272,2]
[368209601,1751059849684,-321.21744611,0.00020272,2]
[368209602,1751059849693,-500.0,0.00020272,2]
[368209603,1751059849703,-489.94962032,0.00020272,2]
[368209604,1751059849712,-500.0,0.00020272,2]
[368209605,1751059849721,-269.4828462,0.00020272,2]
[368209606,1751059849730,-500.0,0.00020272,2]
[368209607,1751059849740,-500.0,0.00020272,2]
[368209608,1751059849749,-500.0,0.00020272,2]
[368209609,1751059849761,-500.0,0.00020272,2]
[368209610,1751059849775,-500.0,0.00020272,2]
[368209611,1751059849789,-500.0,0.00020272,2]
[368209612,1751059849801,-500.0,0.00020272,2]
[368209613,1751059849812,-500.0,0.00020272,2]
[368209614,1751059849825,-500.0,0.00020272,2]
[368209615,1751059849840,-369.16718295,0.00020272,2]
[368209616,1751059849852,-500.0,0.00020272,2]
[368209617,1751059849865,-500.0,0.00020272,2]
[368209618,1751059849878,-500.0,0.00020272,2]
[368209619,1751059849892,-500.0,0.00020272,2]
[368209620,1751059849906,-500.0,0.00020272,2]
[368209621,1751059849917,-500.0,0.00020272,2]
[368209622,1751059849930,-500.0,0.00020272,2]
[368209623,1751059849941,-500.0,0.00020272,2]
[368209624,1751059849951,-500.0,0.00020272,2]
[368209625,1751059849965,-500.0,0.00020272,2]
[368209626,1751059849977,-208.87193447,0.00020272,2]
[368209627,1751059849990,-500.0,0.00020272,2]
[368209628,1751059850003,-500.0,0.00020272,2]
[368209629,1751059850016,-500.0,0.00020272,2]
[368209630,1751059850029,-500.0,0.00020272,2]
[368209631,1751059850041,-500.0,0.00020272,2]
[368209632,1751059850053,-500.0,0.00020272,2]
[368209633,1751059850066,-500.0,0.00020272,2]
[368209634,1751059850077,-500.0,0.00020272,2]
[368209635,1751059850091,-500.0,0.00020272,2]
[368209636,1751059850103,-500.0,0.00020272,2]
[368209637,1751059850116,-500.0,0.00020272,2]
[368209638,1751059850128,-500.0,0.00020272,2]
[368209639,1751059850140,-579.29868314,0.00020272,2]
[368209640,1751059850151,-460.0,0.00020273,2]
[368209641,1751059850163,-460.0,0.00020273,2]
[368209642,1751059850176,-460.0,0.00020273,2]
[368209643,1751059850189,-460.0,0.00020273,2]
[368209644,1751059850202,-598.24619751,0.00020273,2]
[368209645,1751059850214,-460.0,0.00020273,2]
[368209646,1751059850227,-460.0,0.00020273,2]
[368209647,1751059850238,-254.26203425,0.00020273,2]
[368209648,1751059850248,-460.0,0.00020273,2]
[368209649,1751059850260,-501.48619889,0.00020273,2]
[368209650,1751059850271,-460.0,0.00020273,2]
[368209651,1751059850285,-584.04,0.00020273,2]
[368209652,1751059850298,-460.0,0.00020273,2]
[368209653,1751059850308,-460.0,0.00020273,2]
[368209654,1751059850318,-460.0,0.00020273,2]
[368209655,1751059850328,-460.0,0.00020273,2]
[368209656,1751059850339,-460.0,0.00020273,2]
[368209657,1751059850351,-460.0,0.00020273,2]
[368209658,1751059850363,-460.0,0.00020273,2]
[368209659,1751059850373,-460.0,0.00020273,2]
[368209660,1751059850384,-460.0,0.00020273,2]
[368209661,1751059850394,-341.21598017,0.00020273,2]
[368209662,1751059850405,-460.0,0.00020273,2]
[368209663,1751059850416,-420.49,0.00020273,2]
[368209664,1751059850427,-460.0,0.00020273,2]
[368209665,1751059850438,-460.0,0.00020273,2]
[368209666,1751059850450,-460.0,0.00020273,2]
[368209667,1751059850460,-807.05,0.00020273,2]
[368209668,1751059850471,-460.0,0.00020273,2]
[368209669,1751059850482,-460.0,0.00020273,2]
[368209670,1751059850493,-460.0,0.00020273,2]
[368209671,1751059850504,-460.0,0.00020273,2]
[368209672,1751059850515,-460.0,0.00020273,2]
[368209673,1751059850526,-460.0,0.00020273,2]
[368209674,1751059850537,-460.0,0.00020273,2]
[368209675,1751059850547,-460.0,0.00020273,2]
[368209676,1751059850558,-156.78487001,0.00020273,2]
[368209677,1751059850569,-482.33,0.00020273,2]
[368209678,1751059850579,-460.0,0.00020273,2]
[368209679,1751059850590,-460.0,0.00020273,2]
[368209680,1751059850602,-460.0,0.00020273,2]
[368209681,1751059850613,-460.0,0.00020273,2]
[368209682,1751059850624,-460.0,0.00020273,2]
[368209683,1751059850634,-460.0,0.00020273,2]
[368209684,1751059850646,-460.0,0.00020273,2]
[368209685,1751059850656,-480.43,0.00020273,2]
[368209686,1751059850667,-151.0,0.00020273,2]
[368209687,1751059850678,-151.0,0.00020273,2]
[368209688,1751059850688,-151.0,0.00020273,2]
[368209689,1751059850699,-175.822523,0.00020273,2]
[368209690,1751059850710,-151.0,0.00020273,2]
[368209691,1751059850721,-151.0,0.00020273,2]
[368209692,1751059850732,-460.0,0.00020273,2]
[368209693,1751059850744,-175.822523,0.00020273,2]
[368209694,1751059850755,-278.915758,0.00020273,2]
[368209695,1751059850767,-460.0,0.00020273,2]
[368209696,1751059850778,-736.02,0.00020273,2]
[368209697,1751059850789,-535.79,0.00020273,2]
[368209698,1751059850800,-460.0,0.00020273,2]
[368209699,1751059850811,-460.0,0.00020273,2]
[368209700,1751059850823,-151.0,0.00020273,2]
[368209701,1751059850834,-151.0,0.00020273,2]
[368209702,1751059850845,-1843.63,0.00020273,2]
[368209703,1751059850856,-554.34,0.00020273,2]
[368209704,1751059850867,-632.84,0.00020273,2]
[368209705,1751059850878,-534.24,0.00020273,2]
[368209706,1751059850889,-151.0,0.00020273,2]
[368209707,1751059850900,-460.0,0.00020273,2]
[368209708,1751059850912,-538.57,0.00020273,2]
[368209709,1751059850923,-721.77,0.00020273,2]
[368209710,1751059850934,-685.27,0.00020273,2]
[368209711,1751059850945,-460.0,0.00020273,2]
[368209712,1751059850956,-1146.55,0.00020273,2]
[368209713,1751059850967,-463.94,0.00020273,2]
[368209714,1751059850978,-152.474555,0.00020273,2]
[368209715,1751059850989,-152.474555,0.00020273,2]
[368209716,1751059850999,-1032.51,0.00020273,2]
[368209717,1751059851011,-244.05,0.00020273,2]
[368209718,1751059851021,-1740.47,0.00020273,2]
[368209719,1751059851032,-460.0,0.00020273,2]
[368209720,1751059851042,-460.0,0.00020273,2]
[368209721,1751059851053,-287.422844,0.00020273,2]
[368209722,1751059851064,-2833.9,0.00020273,2]
[368209723,1751059851075,-2925.91,0.00020273,2]
[368209724,1751059851086,-460.0,0.00020273,2]
[368209725,1751059851097,-610.39,0.00020273,2]
[368209726,1751059851107,-460.0,0.00020273,2]
[368209727,1751059851118,-3411.96,0.00020273,2]
[368209728,1751059851129,-151.0,0.00020273,2]
[368209729,1751059851140,-460.0,0.00020273,2]
[368209730,1751059851151,-460.0,0.00020273,2]
[368209731,1751059851162,-460.0,0.00020273,2]
[368209732,1751059851174,-575.73,0.00020273,2]
[368209733,1751059851187,-460.0,0.00020273,2]
[368209734,1751059851197,-5400.88,0.00020273,2]
[368209735,1751059851209,-460.0,0.00020273,2]
[368209736,1751059851220,-460.0,0.00020273,2]
[368209737,1751059851231,-613.16,0.00020273,2]
[368209738,1751059851242,-1518.34,0.00020273,2]
[368209739,1751059851253,-460.0,0.00020273,2]
[368209740,1751059851264,-500.0,0.00020273,2]
[368209741,1751059851275,-2112.7,0.00020273,2]
[368209742,1751059851285,-460.0,0.00020273,2]
[368209743,1751059851296,-215.581128,0.00020273,2]
[368209744,1751059851307,-2017.59,0.00020273,2]
[368209745,1751059851318,-215.581128,0.00020273,2]
[368209746,1751059851330,-682.29,0.00020273,2]
[368209747,1751059851341,-1692.279498,0.00020273,2]
[368209748,1751059851351,-1692.279498,0.00020273,2]
[368209749,1751059851362,-559.54,0.00020273,2]
[368209750,1751059851372,-151.0,0.00020273,2]
[368209751,1751059851383,-460.0,0.00020273,2]
[368209752,1751059851394,-4888.98,0.00020273,2]
[368209753,1751059851404,-460.0,0.00020273,2]
[368209754,1751059851415,-1040.67,0.00020273,2]
[368209755,1751059851426,-327.58500441,0.00020273,2]
[368209756,1751059851436,-218.69,0.00020273,2]
[368209757,1751059851447,-849.9,0.00020273,2]
[368209758,1751059851639,-1397.72,0.00020273,2]
[368209759,1751059851652,-671.09,0.00020273,2]
[368209760,1751059851662,-749.3,0.00020273,2]
[368209761,1751059851671,-460.0,0.00020273,2]
[368209762,1751059851680,-151.0,0.00020273,2]
[368209763,1751059851689,-460.0,0.00020273,2]
[368209764,1751059851699,-748.21,0.00020273,2]
[368209765,1751059851708,-151.0,0.00020273,2]
[368209766,1751059851718,-1458.43,0.00020273,2]
[368209767,1751059851727,-460.0,0.00020273,2]
[368209768,1751059851736,-460.0,0.00020273,2]
[368209769,1751059851745,-460.0,0.00020273,2]
[368209770,1751059851755,-2371.99,0.00020273,2]
[368209771,1751059851763,-644.03,0.00020273,2]
[368209772,1751059851774,-569.25,0.00020273,2]
[368209773,1751059851790,-460.0,0.00020273,2]
[368209774,1751059851800,-587.46,0.00020273,2]
[368209775,1751059851809,-446.376037,0.00020273,2]
[368209776,1751059851819,-703.34,0.00020273,2]
[368209777,1751059851828,-4481.33,0.00020273,2]
[368209778,1751059851838,-460.0,0.00020273,2]
[368209779,1751059851847,-446.376037,0.00020273,2]
[368209780,1751059851856,-1352.98,0.00020273,2]
[368209781,1751059851865,-274.29290109,0.00020273,2]
[368209782,1751059851874,-460.0,0.00020273,2]
[368209783,1751059851882,-894.55,0.00020273,2]
[368209784,1751059851891,-460.0,0.00020273,2]
[368209785,1751059851899,-1968.67,0.00020273,2]
[368209786,1751059851909,-345.582158,0.00020273,2]
[368209787,1751059851917,-460.0,0.00020273,2]
[368209788,1751059851926,-460.0,0.00020273,2]
[368209789,1751059851935,-345.582158,0.00020273,2]
[368209790,1751059851944,-460.0,0.00020273,2]
[368209791,1751059851953,-460.0,0.00020273,2]
[368209792,1751059851962,-5486.24,0.00020273,2]
[368209793,1751059851971,-529.91,0.00020273,2]
[368209794,1751059851980,-460.0,0.00020273,2]
[368209795,1751059851989,-756.72,0.00020273,2]
[368209796,1751059851997,-151.0,0.00020273,2]
[368209797,1751059852006,-770.22,0.00020273,2]
[368209798,1751059852015,-2987.28,0.00020273,2]
[368209799,1751059852024,-460.0,0.00020273,2]
[368209800,1751059852032,-368.561114,0.00020273,2]
[368209801,1751059852041,-460.0,0.00020273,2]
[368209802,1751059852050,-977.92,0.00020273,2]
[368209803,1751059852059,-368.561114,0.00020273,2]
[368209804,1751059852067,-263.643916,0.00020273,2]
[368209805,1751059852075,-884.983657,0.00020273,2]
[368209806,1751059852084,-3584.12,0.00020273,2]
[368209807,1751059852093,-263.643916,0.00020273,2]
[368209808,1751059852102,-884.983657,0.00020273,2]
[368209809,1751059852110,-460.0,0.00020273,2]
[368209810,1751059852119,-652.23,0.00020273,2]
[368209811,1751059852127,-755.55,0.00020273,2]
[368209812,1751059852135,-153.0,0.00020274,2]
[368209813,1751059852143,-153.0,0.00020274,2]
[368209814,1751059852151,-153.0,0.00020274,2]
[368209815,1751059852159,-300.0,0.00020275,2]
[368209816,1751059852168,-417.25276564,0.0002035,2]
[368209817,1751059852178,-6026.94369125,0.00020383,3]
[368209818,1751059852187,-252.0,0.00020542,2]
[368209819,1751059852195,-460.0,0.00020547,2]
[368209820,1751059852203,-460.0,0.00020547,2]
[368209821,1751059852212,-460.0,0.00020547,2]
[368209822,1751059852222,-460.0,0.00020547,2]
[368209823,1751059852230,-460.0,0.00020547,2]
[368209824,1751059852239,-460.0,0.00020547,2]
[368209825,1751059852247,-460.0,0.00020547,2]
[368209826,1751059852257,-460.0,0.00020547,2]
[368209827,1751059852266,-584.04,0.00020547,2]
[368209828,1751059852274,-460.0,0.00020547,2]
[368209829,1751059852283,-460.0,0.00020547,2]
[368209830,1751059852291,-460.0,0.00020547,2]
[368209831,1751059852299,-460.0,0.00020547,2]
[368209832,1751059852307,-460.0,0.00020547,2]
[368209833,1751059852315,-460.0,0.00020547,2]
[368209834,1751059852323,-460.0,0.00020547,2]
[368209835,1751059852331,-460.0,0.00020547,2]
[368209836,1751059852339,-460.0,0.00020547,2]
[368209837,1751059852347,-460.0,0.00020547,2]
[368209838,1751059852355,-460.0,0.00020547,2]
[368209839,1751059852363,-807.05,0.00020547,2]
[368209840,1751059852371,-151.0,0.00020547,2]
[368209841,1751059852379,-460.0,0.00020547,2]
[368209842,1751059852387,-460.0,0.00020547,2]
[368209843,1751059852395,-151.0,0.00020547,2]
[368209844,1751059852404,-151.0,0.00020547,2]
[368209845,1751059852412,-460.0,0.00020547,2]
[368209846,1751059852420,-460.0,0.00020547,2]
[368209847,1751059852429,-367.42878218,0.00020547,2]
[368209848,1751059852437,-151.0,0.00020547,2]
[368209849,1751059852445,-460.0,0.00020547,2]
[368209850,1751059852454,-216.247543,0.00020547,2]
[368209851,1751059852462,-482.33,0.00020547,2]
[368209852,1751059852471,-151.0,0.00020547,2]
[368209853,1751059852479,-216.247543,0.00020547,2]
[368209854,1751059852487,-460.0,0.00020547,2]
[368209855,1751059852495,-460.0,0.00020547,2]
[368209856,1751059852503,-460.0,0.00020547,2]
[368209857,1751059852511,-249.715837,0.00020547,2]
[368209858,1751059852518,-249.715837,0.00020547,2]
[368209859,1751059852526,-460.0,0.00020547,2]
[368209860,1751059852534,-151.0,0.00020547,2]
[368209861,1751059852542,-151.0,0.00020547,2]
[368209862,1751059852550,-460.0,0.00020547,2]
[368209863,1751059852558,-306.660966,0.00020547,2]
[368209864,1751059852566,-460.0,0.00020547,2]
[368209865,1751059852574,-151.0,0.00020547,2]
[368209866,1751059852583,-306.660966,0.00020547,2]
[368209867,1751059852590,-151.0,0.00020547,2]
[368209868,1751059852599,-460.0,0.00020547,2]
[368209869,1751059852607,-480.43,0.00020547,2]
[368209870,1751059852615,-460.0,0.00020547,2]
[368209871,1751059852623,-460.0,0.00020547,2]
[368209872,1751059852632,-736.02,0.00020547,2]
[368209873,1751059852641,-535.79,0.00020547,2]
[368209874,1751059852650,-460.0,0.00020547,2]
[368209875,1751059852658,-460.0,0.00020547,2]
[368209876,1751059852667,-1843.63,0.00020547,2]
[368209877,1751059852675,-554.34,0.00020547,2]
[368209878,1751059852683,-632.84,0.00020547,2]
[368209879,1751059852692,-534.24,0.00020547,2]
[368209880,1751059852701,-460.0,0.00020547,2]
[368209881,1751059852709,-538.57,0.00020547,2]
[368209882,1751059852718,-721.77,0.00020547,2]
[368209883,1751059852726,-685.27,0.00020547,2]
[368209884,1751059852735,-1146.55,0.00020547,2]
[368209885,1751059852743,-463.94,0.00020547,2]
[368209886,1751059852751,-1032.51,0.00020547,2]
[368209887,1751059852760,-1740.47,0.00020547,2]
[368209888,1751059852768,-460.0,0.00020547,2]
[368209889,1751059852776,-460.0,0.00020547,2]
[368209890,1751059852784,-2833.9,0.00020547,2]
[368209891,1751059852793,-2925.91,0.00020547,2]
[368209892,1751059852801,-460.0,0.00020547,2]
[368209893,1751059852810,-610.39,0.00020547,2]
[368209894,1751059852819,-3411.96,0.00020547,2]
[368209895,1751059852827,-460.0,0.00020547,2]
[368209896,1751059852836,-460.0,0.00020547,2]
[368209897,1751059852844,-460.0,0.00020547,2]
[368209898,1751059852853,-575.73,0.00020547,2]
[368209899,1751059852862,-460.0,0.00020547,2]
[368209900,1751059852871,-5400.88,0.00020547,2]
[368209901,1751059852880,-460.0,0.00020547,2]
[368209902,1751059852890,-460.0,0.00020547,2]
[368209903,1751059852898,-613.16,0.00020547,2]
[368209904,1751059852907,-1518.34,0.00020547,2]
[368209905,1751059852915,-2112.7,0.00020547,2]
[368209906,1751059852924,-460.0,0.00020547,2]
[368209907,1751059852933,-2017.59,0.00020547,2]
[368209908,1751059852942,-682.29,0.00020547,2]
[368209909,1751059852951,-559.54,0.00020547,2]
[368209910,1751059852959,-161.102369,0.00020547,2]
[368209911,1751059852968,-4888.98,0.00020547,2]
[368209912,1751059852976,-460.0,0.00020547,2]
[368209913,1751059852985,-1040.67,0.00020547,2]
[368209914,1751059852993,-849.9,0.00020547,2]
[368209915,1751059853002,-1397.72,0.00020547,2]
[368209916,1751059853011,-671.09,0.00020547,2]
[368209917,1751059853020,-749.3,0.00020547,2]
[368209918,1751059853028,-460.0,0.00020547,2]
[368209919,1751059853036,-151.0,0.00020547,2]
[368209920,1751059853045,-460.0,0.00020547,2]
[368209921,1751059853054,-748.21,0.00020547,2]
[368209922,1751059853063,-278.411716,0.00020547,2]
[368209923,1751059853071,-460.0,0.00020547,2]
[368209924,1751059853079,-1458.43,0.00020547,2]
[368209925,1751059853089,-2371.99,0.00020547,2]
[368209926,1751059853097,-644.03,0.00020547,2]
[368209927,1751059853106,-569.25,0.00020547,2]
[368209928,1751059853115,-460.0,0.00020547,2]
[368209929,1751059853124,-587.46,0.00020547,2]
[368209930,1751059853132,-703.34,0.00020547,2]
[368209931,1751059853141,-4481.33,0.00020547,2]
[368209932,1751059853150,-460.0,0.00020547,2]
[368209933,1751059853158,-1352.98,0.00020547,2]
[368209934,1751059853167,-460.0,0.00020547,2]
[368209935,1751059853178,-894.55,0.00020547,2]
[368209936,1751059853187,-460.0,0.00020547,2]
[368209937,1751059853196,-1968.67,0.00020547,2]
[368209938,1751059853204,-151.0,0.00020547,2]
[368209939,1751059853213,-345.582158,0.00020547,2]
[368209940,1751059853222,-460.0,0.00020547,2]
[368209941,1751059853230,-345.582158,0.00020547,2]
[368209942,1751059853241,-460.0,0.00020547,2]
[368209943,1751059853250,-460.0,0.00020547,2]
[368209944,1751059853259,-5486.24,0.00020547,2]
[368209945,1751059853267,-529.91,0.00020547,2]
[368209946,1751059853275,-460.0,0.00020547,2]
[368209947,1751059853283,-756.72,0.00020547,2]
[368209948,1751059853292,-151.0,0.00020547,2]
[368209949,1751059853301,-770.22,0.00020547,2]
[368209950,1751059853309,-2987.28,0.00020547,2]
[368209951,1751059853319,-460.0,0.00020547,2]
[368209952,1751059853327,-368.561114,0.00020547,2]
[368209953,1751059853336,-977.92,0.00020547,2]
[368209954,1751059853345,-368.561114,0.00020547,2]
[368209955,1751059853353,-884.983657,0.00020547,2]
[368209956,1751059853362,-3584.12,0.00020547,2]
[368209957,1751059853370,-884.983657,0.00020547,2]
[368209958,1751059853379,-460.0,0.00020547,2]
[368209959,1751059853388,-652.23,0.00020547,2]
[368209960,1751059853396,-755.55,0.00020547,2]
[368209961,1751059853405,-252.0,0.00020576,2]
[368209962,1751059853413,-1893.7249452,0.00020584,2]
[368209963,1751059853422,-12562.41216491,0.00020624,3]
[368209964,1751059853431,-847.04181546,0.00020624,3]
[368209965,1751059853439,-6026.94369125,0.00020624,3]
[368209966,1751059853448,-213.75309343,0.00020624,3]
[368209967,1751059853456,-160.0,0.00020624,3]
[368209968,1751059853465,-901.249093,0.00020731,4]
[368209969,1751059853473,-5000.0,0.00020743,2]
[368209970,1751059853482,-151.0,0.00020763,2]
[368209971,1751059853490,-151.0,0.00020763,2]
[368209972,1751059853498,-151.0,0.00020763,2]
[368209973,1751059853508,-151.0,0.00020763,2]
[368209974,1751059853516,-178.734036,0.00020763,2]
[368209975,1751059853524,-178.734036,0.00020763,2]
[368209976,1751059853533,-255.832791,0.00020763,2]
[368209977,1751059853542,-255.832791,0.00020763,2]
[368209978,1751059853551,-1000.0,0.00020817,2]
[368209979,1751059853559,-151.0,0.0002082,2]
[368209980,1751059853568,-151.0,0.0002082,2]
[368209981,1751059853577,-151.0,0.0002082,2]
[368209982,1751059853586,-152.474555,0.0002082,2]
[368209983,1751059853595,-152.474555,0.0002082,2]
[368209984,1751059853604,-215.581128,0.0002082,2]
[368209985,1751059853613,-215.581128,0.0002082,2]
[368209986,1751059853623,-1692.279498,0.0002082,2]